[Event "Early-Titled-Tuesday-Blitz-February-20-2024"]
[Site "Chess.com"]
[Date "2024.02.20"]
[Round "7"]
[White "Felix-Rose"]
[Black "TioCridineno"]
[Result "1-0"]
[WhiteElo "2285"]
[BlackElo "2385"]
[TimeControl "180+1"]
[EndTime "9:19:53 PST"]
[Termination "Felix-Rose won by resignation"]

1. e4 {[%clk 0:03:00.9]} 1... c5 {[%clk 0:03:00]} 2. Nf3 {[%clk 0:03:00.4]} 2...
Nc6 {[%clk 0:03:00.4]} 3. d4 {[%clk 0:03:00.2]} 3... cxd4 {[%clk 0:03:00.7]} 4.
Nxd4 {[%clk 0:03:01.1]} 4... Nf6 {[%clk 0:03:01.1]} 5. Nc3 {[%clk 0:03:01.1]}
5... e5 {[%clk 0:03:01.8]} 6. Ndb5 {[%clk 0:03:01.2]} 6... d6 {[%clk 0:03:02.3]}
7. Bg5 {[%clk 0:03:01.5]} 7... a6 {[%clk 0:03:02.4]} 8. Na3 {[%clk 0:03:00.1]}
8... b5 {[%clk 0:03:02.4]} 9. Nd5 {[%clk 0:03:00.6]} 9... Be7 {[%clk 0:03:02.3]}
10. Bxf6 {[%clk 0:03:01.2]} 10... Bxf6 {[%clk 0:03:03]} 11. c3 {[%clk
0:03:02.1]} 11... O-O {[%clk 0:03:02.3]} 12. Nc2 {[%clk 0:03:02.8]} 12... Bg5
{[%clk 0:03:02.7]} 13. a4 {[%clk 0:03:03.1]} 13... bxa4 {[%clk 0:03:02.6]} 14.
Rxa4 {[%clk 0:03:04]} 14... a5 {[%clk 0:03:03.2]} 15. Bc4 {[%clk 0:03:03.5]}
15... Rb8 {[%clk 0:03:03.7]} 16. b3 {[%clk 0:03:04]} 16... Kh8 {[%clk
0:03:04.1]} 17. Nce3 {[%clk 0:03:02.4]} 17... g6 {[%clk 0:03:04.1]} 18. h4
{[%clk 0:03:00.5]} 18... Bxe3 {[%clk 0:02:55.9]} 19. Nxe3 {[%clk 0:03:00.2]}
19... Ne7 {[%clk 0:02:47.1]} 20. h5 {[%clk 0:02:58.6]} 20... Kg7 {[%clk
0:02:44.7]} 21. Qf3 {[%clk 0:02:37.3]} 21... Be6 {[%clk 0:02:35.5]} 22. h6+
{[%clk 0:02:19.1]} 22... Kg8 {[%clk 0:02:34.9]} 23. Qf6 {[%clk 0:02:18.5]} 23...
Nf5 {[%clk 0:02:30.3]} 24. Qxd8 {[%clk 0:02:15.7]} 24... Rfxd8 {[%clk
0:02:30.1]} 25. exf5 {[%clk 0:02:11.1]} 25... Bxc4 {[%clk 0:02:28]} 26. Nxc4
{[%clk 0:01:51.3]} 26... Rxb3 {[%clk 0:02:27]} 27. O-O {[%clk 0:01:47.4]} 27...
Rxc3 {[%clk 0:02:25.8]} 28. Rd1 {[%clk 0:01:32.7]} 28... gxf5 {[%clk 0:02:18]}
29. Nxe5 {[%clk 0:01:18.7]} 29... Rc5 {[%clk 0:02:11.9]} 30. Nc4 {[%clk
0:01:11.3]} 30... f6 {[%clk 0:02:08.9]} 31. Rxd6 {[%clk 0:01:06]} 31... Rxd6
{[%clk 0:02:08.6]} 32. Nxd6 {[%clk 0:01:06.9]} 32... Rd5 {[%clk 0:02:03.1]} 33.
Nb7 {[%clk 0:01:03.4]} 33... Kf7 {[%clk 0:02:02.7]} 34. Rxa5 {[%clk 0:01:00.2]}
34... Rd1+ {[%clk 0:02:02.7]} 35. Kh2 {[%clk 0:00:59.8]} 35... Kg6 {[%clk
0:02:03.6]} 36. Kg3 {[%clk 0:00:52.1]} 36... Rd3+ {[%clk 0:01:59.9]} 37. f3
{[%clk 0:00:51]} 37... Rd2 {[%clk 0:01:53.1]} 38. Rb5 {[%clk 0:00:47.3]} 38...
f4+ {[%clk 0:01:52]} 39. Kh3 {[%clk 0:00:45.2]} 39... Kxh6 {[%clk 0:01:50.6]}
40. Rf5 {[%clk 0:00:43.2]} 40... Kg6 {[%clk 0:01:49.3]} 41. Rxf4 {[%clk
0:00:43]} 41... h5 {[%clk 0:01:47.8]} 42. Nc5 {[%clk 0:00:40.9]} 42... f5 {[%clk
0:01:39.8]} 43. Ne6 {[%clk 0:00:38.7]} 43... Rd6 {[%clk 0:01:36.1]} 44. Nd4
{[%clk 0:00:34.3]} 44... Rd5 {[%clk 0:01:36]} 45. Rh4 {[%clk 0:00:23.4]} 45...
Ra5 {[%clk 0:01:24.9]} 46. Ne2 {[%clk 0:00:21.8]} 46... Ra1 {[%clk 0:01:20.5]}
47. Nf4+ {[%clk 0:00:20.7]} 47... Kf6 {[%clk 0:01:21.1]} 48. Nxh5+ {[%clk
0:00:20.7]} 48... Ke5 {[%clk 0:01:20.9]} 49. Kg3 {[%clk 0:00:19.3]} 49... Ra8
{[%clk 0:01:19.7]} 50. f4+ {[%clk 0:00:18.7]} 50... Ke4 {[%clk 0:01:18.6]} 51.
Nf6+ {[%clk 0:00:19.4]} 51... Ke3 {[%clk 0:01:18.6]} 52. Rh5 {[%clk 0:00:17.1]}
52... Ra6 {[%clk 0:01:17]} 53. Rxf5 {[%clk 0:00:17.3]} 53... Rd6 {[%clk
0:01:12.4]} 54. Re5+ {[%clk 0:00:17.6]} 54... Kd4 {[%clk 0:01:09.9]} 55. Re4+
{[%clk 0:00:16.3]} 55... Kd3 {[%clk 0:01:07.9]} 56. Kf3 {[%clk 0:00:13.4]} 56...
Rxf6 {[%clk 0:01:07.6]} 57. Re5 {[%clk 0:00:13.5]} 57... Kd4 {[%clk 0:01:07.2]}
58. g4 {[%clk 0:00:14]} 58... Ra6 {[%clk 0:01:06.9]} 59. g5 {[%clk 0:00:14.7]}
59... Ra1 {[%clk 0:01:06.3]} 60. Kg4 {[%clk 0:00:14.8]} 60... Rg1+ {[%clk
0:01:06.4]} 61. Kf5 {[%clk 0:00:15.5]} 61... Rf1 {[%clk 0:01:07.3]} 62. g6
{[%clk 0:00:16]} 62... Rg1 {[%clk 0:01:05.9]} 63. Re7 {[%clk 0:00:16.1]} 63...
Kd5 {[%clk 0:01:05.5]} 64. g7 {[%clk 0:00:16.5]} 64... Kd6 {[%clk 0:01:06.1]}
65. Rf7 {[%clk 0:00:16.2]} 65... Rg2 {[%clk 0:01:03.9]} 66. Kf6 {[%clk
0:00:15.9]} 66... Rf2 {[%clk 0:01:04.1]} 67. f5 {[%clk 0:00:16.5]} 67... Rg2
{[%clk 0:01:04.5]} 68. Rf8 {[%clk 0:00:16.3]} 68... Kd7 {[%clk 0:01:03.6]} 69.
g8=Q {[%clk 0:00:16.7]} 1-0

[Event "Early-Titled-Tuesday-Blitz-February-20-2024"]
[Site "Chess.com"]
[Date "2024.02.20"]
[Round "7"]
[White "Magic-Nelwyn"]
[Black "regenda"]
[Result "1-0"]
[WhiteElo "2479"]
[BlackElo "2249"]
[TimeControl "180+1"]
[EndTime "9:19:54 PST"]
[Termination "Magic-Nelwyn won on time"]

1. e4 {[%clk 0:03:00.9]} 1... c5 {[%clk 0:02:56.3]} 2. c3 {[%clk 0:03:00.6]}
2... Nf6 {[%clk 0:02:56]} 3. e5 {[%clk 0:03:00.7]} 3... Nd5 {[%clk 0:02:56.7]}
4. Bc4 {[%clk 0:03:01.1]} 4... e6 {[%clk 0:02:56.2]} 5. Nf3 {[%clk 0:03:00.7]}
5... d6 {[%clk 0:02:56.1]} 6. O-O {[%clk 0:03:00.4]} 6... Be7 {[%clk 0:02:53.5]}
7. d4 {[%clk 0:02:59.9]} 7... cxd4 {[%clk 0:02:53.4]} 8. cxd4 {[%clk 0:03:00.8]}
8... O-O {[%clk 0:02:51.2]} 9. Bd2 {[%clk 0:02:52.8]} 9... b6 {[%clk 0:02:45.9]}
10. Nc3 {[%clk 0:02:52.3]} 10... Nxc3 {[%clk 0:02:37]} 11. Bxc3 {[%clk
0:02:53.2]} 11... Bb7 {[%clk 0:02:29.7]} 12. Qe2 {[%clk 0:02:48.9]} 12... Nd7
{[%clk 0:02:20]} 13. Rad1 {[%clk 0:02:40.4]} 13... Rc8 {[%clk 0:02:12.4]} 14.
Bd3 {[%clk 0:02:40.1]} 14... Qc7 {[%clk 0:01:56.1]} 15. Bb1 {[%clk 0:02:33.8]}
15... Rfd8 {[%clk 0:01:46.9]} 16. Qd3 {[%clk 0:02:03.7]} 16... Nf8 {[%clk
0:01:45.5]} 17. Qe3 {[%clk 0:01:53.2]} 17... dxe5 {[%clk 0:01:39.4]} 18. Nxe5
{[%clk 0:01:47.2]} 18... Ng6 {[%clk 0:01:15.4]} 19. Qh3 {[%clk 0:01:37.3]} 19...
Bd6 {[%clk 0:00:56.7]} 20. Ng4 {[%clk 0:01:08.3]} 20... Bd5 {[%clk 0:00:44.2]}
21. Bd2 {[%clk 0:00:50.4]} 21... Bf4 {[%clk 0:00:43]} 22. g3 {[%clk 0:00:26.2]}
22... Bxd2 {[%clk 0:00:42.1]} 23. Rxd2 {[%clk 0:00:26.7]} 23... Qe7 {[%clk
0:00:38.3]} 24. Qh5 {[%clk 0:00:20.7]} 24... Qb4 {[%clk 0:00:33.7]} 25. Qg5
{[%clk 0:00:14.4]} 25... Bf3 {[%clk 0:00:15.8]} 26. h3 {[%clk 0:00:13.3]} 26...
Rxd4 {[%clk 0:00:14.7]} 27. Rxd4 {[%clk 0:00:12.8]} 27... Qxd4 {[%clk
0:00:15.6]} 28. Nh2 {[%clk 0:00:09]} 28... Be4 {[%clk 0:00:09.3]} 29. Qg4 {[%clk
0:00:07.4]} 29... f5 {[%clk 0:00:09.1]} 30. Qe2 {[%clk 0:00:04.9]} 30... Bxb1
{[%clk 0:00:08.2]} 31. Qxe6+ {[%clk 0:00:04.7]} 31... Kf8 {[%clk 0:00:04]} 32.
Qxc8+ {[%clk 0:00:05.6]} 32... Kf7 {[%clk 0:00:04.4]} 33. Rxb1 {[%clk
0:00:05.9]} 33... Ne7 {[%clk 0:00:02.5]} 34. Qb7 {[%clk 0:00:06]} 34... Kf6
{[%clk 0:00:02.2]} 35. Rf1 {[%clk 0:00:05.6]} 35... Nd5 {[%clk 0:00:02.4]} 36.
Qc6+ {[%clk 0:00:05.5]} 36... Kf7 {[%clk 0:00:01.7]} 37. Nf3 {[%clk 0:00:06]}
1-0

[Event "Early-Titled-Tuesday-Blitz-February-20-2024"]
[Site "Chess.com"]
[Date "2024.02.20"]
[Round "7"]
[White "jodarmarlon1985"]
[Black "Maftuna2303"]
[Result "0-1"]
[WhiteElo "2169"]
[BlackElo "2411"]
[TimeControl "180+1"]
[EndTime "9:19:57 PST"]
[Termination "Maftuna2303 won on time"]

1. e4 {[%clk 0:03:00.9]} 1... e5 {[%clk 0:02:58.8]} 2. Nf3 {[%clk 0:03:00.6]}
2... Nc6 {[%clk 0:02:58.8]} 3. Bb5 {[%clk 0:03:00.8]} 3... Nf6 {[%clk
0:02:59.1]} 4. d3 {[%clk 0:03:00.6]} 4... Bc5 {[%clk 0:02:58.3]} 5. Bxc6 {[%clk
0:02:59.6]} 5... dxc6 {[%clk 0:02:58.3]} 6. h3 {[%clk 0:03:00.5]} 6... Qe7
{[%clk 0:02:54.1]} 7. O-O {[%clk 0:03:00.8]} 7... O-O {[%clk 0:02:53.8]} 8. b3
{[%clk 0:02:59.1]} 8... Nd7 {[%clk 0:02:49.3]} 9. Bb2 {[%clk 0:02:58.8]} 9... f6
{[%clk 0:02:48.4]} 10. Nbd2 {[%clk 0:02:57.3]} 10... Rd8 {[%clk 0:02:48.2]} 11.
Qe2 {[%clk 0:02:56.7]} 11... Nf8 {[%clk 0:02:48.2]} 12. Nc4 {[%clk 0:02:43.3]}
12... Ng6 {[%clk 0:02:44.9]} 13. Ne3 {[%clk 0:02:38.2]} 13... Nf4 {[%clk
0:02:42.6]} 14. Qe1 {[%clk 0:02:37.5]} 14... Qf7 {[%clk 0:02:38.1]} 15. Nf5
{[%clk 0:02:24]} 15... Qh5 {[%clk 0:02:34.6]} 16. Qd1 {[%clk 0:00:47.9]} 16...
Bxf5 {[%clk 0:02:29.7]} 17. exf5 {[%clk 0:00:48.8]} 17... Qxf5 {[%clk
0:02:26.4]} 18. Bc1 {[%clk 0:00:25.5]} 18... g5 {[%clk 0:02:12.3]} 19. Be3
{[%clk 0:00:20.9]} 19... Bb6 {[%clk 0:02:07.3]} 20. Nh2 {[%clk 0:00:17.5]} 20...
Qg6 {[%clk 0:02:02.8]} 21. Qg4 {[%clk 0:00:16.6]} 21... h5 {[%clk 0:02:00.6]}
22. Qf3 {[%clk 0:00:16.8]} 22... Nd5 {[%clk 0:01:54]} 23. Bd2 {[%clk 0:00:16.3]}
23... Kh7 {[%clk 0:01:47.5]} 24. Rad1 {[%clk 0:00:15.9]} 24... Rg8 {[%clk
0:01:47.3]} 25. Kh1 {[%clk 0:00:15.3]} 25... Raf8 {[%clk 0:01:44]} 26. Qe4
{[%clk 0:00:15.5]} 26... f5 {[%clk 0:01:36]} 27. Qxe5 {[%clk 0:00:15]} 27... Re8
{[%clk 0:01:35.6]} 28. Qg3 {[%clk 0:00:14.6]} 28... f4 {[%clk 0:01:30.7]} 29.
Qf3 {[%clk 0:00:13.9]} 29... Bd4 {[%clk 0:01:28.6]} 30. c3 {[%clk 0:00:08.9]}
30... Nxc3 {[%clk 0:01:25.3]} 31. Bxc3 {[%clk 0:00:08.7]} 31... Bxc3 {[%clk
0:01:25.4]} 32. d4 {[%clk 0:00:08.7]} 32... Bb4 {[%clk 0:01:24.9]} 33. Qd3
{[%clk 0:00:07.8]} 33... Bd6 {[%clk 0:01:22.6]} 34. Nf3 {[%clk 0:00:07.7]} 34...
Qxd3 {[%clk 0:01:21.1]} 35. Rxd3 {[%clk 0:00:07]} 35... Kg6 {[%clk 0:01:21.2]}
36. Rfd1 {[%clk 0:00:05.9]} 36... Re2 {[%clk 0:01:19.6]} 37. a4 {[%clk
0:00:04.7]} 37... Kf6 {[%clk 0:01:19.1]} 38. Kg1 {[%clk 0:00:03.9]} 38... g4
{[%clk 0:01:18.5]} 39. hxg4 {[%clk 0:00:04]} 39... hxg4 {[%clk 0:01:18.6]} 40.
Ne5 {[%clk 0:00:04.9]} 40... Bxe5 {[%clk 0:01:16.2]} 41. dxe5+ {[%clk
0:00:05.8]} 41... Rxe5 {[%clk 0:01:15.5]} 42. Rd7 {[%clk 0:00:06.1]} 42... Re7
{[%clk 0:01:08.1]} 43. Kf1 {[%clk 0:00:05.5]} 43... Rge8 {[%clk 0:01:06.7]} 44.
Rxe7 {[%clk 0:00:04.8]} 44... Rxe7 {[%clk 0:01:06.8]} 45. Rd4 {[%clk 0:00:05.4]}
45... Ke5 {[%clk 0:01:06.1]} 46. Rc4 {[%clk 0:00:04.4]} 46... Rd7 {[%clk
0:01:05.7]} 47. Ke2 {[%clk 0:00:04.2]} 47... Rd4 {[%clk 0:01:00.3]} 48. Rc5+
{[%clk 0:00:04.3]} 48... Rd5 {[%clk 0:01:00.2]} 49. Rc4 {[%clk 0:00:04.8]} 49...
c5 {[%clk 0:00:57.8]} 50. g3 {[%clk 0:00:04.8]} 50... f3+ {[%clk 0:00:57.2]} 51.
Ke3 {[%clk 0:00:04.7]} 51... Kf5 {[%clk 0:00:57.5]} 52. Rf4+ {[%clk 0:00:04.8]}
52... Kg5 {[%clk 0:00:57.7]} 53. Rxf3 {[%clk 0:00:05.4]} 53... gxf3 {[%clk
0:00:57.2]} 54. Kxf3 {[%clk 0:00:05.2]} 54... Rd3+ {[%clk 0:00:57.3]} 0-1

[Event "Early-Titled-Tuesday-Blitz-February-20-2024"]
[Site "Chess.com"]
[Date "2024.02.20"]
[Round "7"]
[White "ChEsper99"]
[Black "Rurep26"]
[Result "0-1"]
[WhiteElo "2236"]
[BlackElo "2732"]
[TimeControl "180+1"]
[EndTime "9:19:58 PST"]
[Termination "Rurep26 won by resignation"]

1. e4 {[%clk 0:03:00.9]} 1... e6 {[%clk 0:02:59.7]} 2. d4 {[%clk 0:03:00.8]}
2... d5 {[%clk 0:02:59.9]} 3. Nd2 {[%clk 0:03:01.4]} 3... c5 {[%clk 0:02:59.3]}
4. Ngf3 {[%clk 0:02:58.1]} 4... cxd4 {[%clk 0:02:57.3]} 5. exd5 {[%clk
0:02:58.4]} 5... Qxd5 {[%clk 0:02:56.5]} 6. Bc4 {[%clk 0:02:59]} 6... Qd6 {[%clk
0:02:57.1]} 7. O-O {[%clk 0:02:49.2]} 7... Nf6 {[%clk 0:02:57.4]} 8. Nb3 {[%clk
0:02:49.1]} 8... Nc6 {[%clk 0:02:57.7]} 9. Nbxd4 {[%clk 0:02:48.5]} 9... Nxd4
{[%clk 0:02:58.6]} 10. Qxd4 {[%clk 0:02:48.6]} 10... Qxd4 {[%clk 0:02:53.5]} 11.
Nxd4 {[%clk 0:02:49.5]} 11... Bd7 {[%clk 0:02:54.3]} 12. Be2 {[%clk 0:02:44.4]}
12... Bc5 {[%clk 0:02:41]} 13. Nb3 {[%clk 0:02:41.2]} 13... Bb6 {[%clk
0:02:41.2]} 14. Bf3 {[%clk 0:02:39.7]} 14... O-O-O {[%clk 0:02:35.4]} 15. c4
{[%clk 0:02:31]} 15... Bc6 {[%clk 0:02:21.6]} 16. Bxc6 {[%clk 0:02:28]} 16...
bxc6 {[%clk 0:02:22.5]} 17. Bg5 {[%clk 0:02:20.6]} 17... Rd3 {[%clk 0:02:16.8]}
18. Bxf6 {[%clk 0:02:09.6]} 18... gxf6 {[%clk 0:02:15.9]} 19. Rfd1 {[%clk
0:02:06.8]} 19... Rhd8 {[%clk 0:02:11.6]} 20. Rxd3 {[%clk 0:02:05.4]} 20... Rxd3
{[%clk 0:02:12.5]} 21. Kf1 {[%clk 0:01:59.6]} 21... a5 {[%clk 0:01:39.5]} 22.
Ke2 {[%clk 0:01:55.6]} 22... Rd7 {[%clk 0:01:39.7]} 23. a4 {[%clk 0:01:46.6]}
23... Rb7 {[%clk 0:01:33]} 24. Nd2 {[%clk 0:01:22.9]} 24... Bd4 {[%clk
0:01:27.6]} 25. Rb1 {[%clk 0:00:57.9]} 25... Rxb2 {[%clk 0:01:01.9]} 26. Rxb2
{[%clk 0:00:57]} 26... Bxb2 {[%clk 0:01:02.8]} 27. Kd3 {[%clk 0:00:47.7]} 27...
Kc7 {[%clk 0:00:36.6]} 28. c5 {[%clk 0:00:39.1]} 28... Ba3 {[%clk 0:00:33.2]}
29. Kd4 {[%clk 0:00:31.1]} 29... f5 {[%clk 0:00:25.8]} 30. Nc4 {[%clk
0:00:14.4]} 30... Bb4 {[%clk 0:00:25.5]} 31. Nd6 {[%clk 0:00:07.8]} 31... Be1
{[%clk 0:00:25.3]} 32. f4 {[%clk 0:00:06.1]} 32... Bf2+ {[%clk 0:00:24.2]} 33.
Kc4 {[%clk 0:00:05.9]} 33... Bg1 {[%clk 0:00:22.3]} 34. h3 {[%clk 0:00:05.3]}
34... Bh2 {[%clk 0:00:22.9]} 35. Nxf7 {[%clk 0:00:04.4]} 35... Bxf4 {[%clk
0:00:22.2]} 36. g4 {[%clk 0:00:04.6]} 36... fxg4 {[%clk 0:00:19.6]} 37. hxg4
{[%clk 0:00:05.5]} 37... Kd7 {[%clk 0:00:16.7]} 38. Kd4 {[%clk 0:00:01.6]} 38...
Ke7 {[%clk 0:00:16.6]} 39. Ne5 {[%clk 0:00:01.3]} 39... Bxe5+ {[%clk 0:00:13.9]}
40. Kxe5 {[%clk 0:00:02.2]} 40... h6 {[%clk 0:00:14.4]} 41. Ke4 {[%clk
0:00:02.1]} 41... Kf6 {[%clk 0:00:14.9]} 42. Kf4 {[%clk 0:00:02.4]} 42... e5+
{[%clk 0:00:15.5]} 43. Ke4 {[%clk 0:00:02.7]} 43... Ke6 {[%clk 0:00:16.2]} 0-1

[Event "Early-Titled-Tuesday-Blitz-February-20-2024"]
[Site "Chess.com"]
[Date "2024.02.20"]
[Round "7"]
[White "Cheer_Down"]
[Black "MyDream003"]
[Result "0-1"]
[WhiteElo "2435"]
[BlackElo "2739"]
[TimeControl "180+1"]
[EndTime "9:19:59 PST"]
[Termination "MyDream003 won on time"]

1. e4 {[%clk 0:03:00.9]} 1... c6 {[%clk 0:02:58.3]} 2. d4 {[%clk 0:03:00.3]}
2... d5 {[%clk 0:02:58.4]} 3. e5 {[%clk 0:03:00.5]} 3... Bf5 {[%clk 0:02:58.7]}
4. h4 {[%clk 0:02:59.8]} 4... h5 {[%clk 0:02:58.6]} 5. Bd3 {[%clk 0:02:59.2]}
5... Bxd3 {[%clk 0:02:58.8]} 6. Qxd3 {[%clk 0:03:00.1]} 6... e6 {[%clk
0:02:57.7]} 7. Bg5 {[%clk 0:02:59.6]} 7... Qa5+ {[%clk 0:02:57.2]} 8. Nd2 {[%clk
0:02:58]} 8... Qb5 {[%clk 0:02:55.3]} 9. c4 {[%clk 0:02:46.6]} 9... dxc4 {[%clk
0:02:49.3]} 10. Nxc4 {[%clk 0:02:46.3]} 10... Nd7 {[%clk 0:02:40.6]} 11. Ne2
{[%clk 0:02:35.7]} 11... Nb6 {[%clk 0:02:21.3]} 12. b3 {[%clk 0:02:34.8]} 12...
Bb4+ {[%clk 0:02:15.2]} 13. Kf1 {[%clk 0:02:32.4]} 13... Nh6 {[%clk 0:01:58.4]}
14. Ng3 {[%clk 0:02:07.9]} 14... Nf5 {[%clk 0:01:37.9]} 15. Nxf5 {[%clk
0:02:04.7]} 15... exf5 {[%clk 0:01:38.8]} 16. Rh3 {[%clk 0:01:52.1]} 16... Nxc4
{[%clk 0:01:07.4]} 17. bxc4 {[%clk 0:01:50.9]} 17... Qa6 {[%clk 0:01:07.6]} 18.
Rc1 {[%clk 0:01:45.2]} 18... g6 {[%clk 0:00:45.6]} 19. Kg1 {[%clk 0:01:37.9]}
19... O-O {[%clk 0:00:43.6]} 20. Bf6 {[%clk 0:01:27.5]} 20... Kh7 {[%clk
0:00:43.2]} 21. Rf3 {[%clk 0:01:24.1]} 21... Rg8 {[%clk 0:00:42]} 22. Rxf5
{[%clk 0:01:13.9]} 22... gxf5 {[%clk 0:00:32.3]} 23. Qxf5+ {[%clk 0:01:14]}
23... Kh6 {[%clk 0:00:33]} 24. Bg5+ {[%clk 0:00:53.8]} 24... Rxg5 {[%clk
0:00:13.8]} 25. hxg5+ {[%clk 0:00:52]} 25... Kg7 {[%clk 0:00:14]} 26. Qf6+
{[%clk 0:00:50.7]} 26... Kg8 {[%clk 0:00:14.3]} 27. e6 {[%clk 0:00:35.9]} 27...
Rf8 {[%clk 0:00:14.2]} 28. g6 {[%clk 0:00:21.8]} 28... fxe6 {[%clk 0:00:13.3]}
29. Qxe6+ {[%clk 0:00:18.6]} 29... Kg7 {[%clk 0:00:13.8]} 30. c5 {[%clk
0:00:17.4]} 30... Qa3 {[%clk 0:00:09.6]} 31. Rc2 {[%clk 0:00:08.7]} 31... Qd3
{[%clk 0:00:09.3]} 32. Re2 {[%clk 0:00:07.5]} 32... Qf5 {[%clk 0:00:08.1]} 33.
Qe7+ {[%clk 0:00:06.5]} 33... Kxg6 {[%clk 0:00:08.3]} 34. Re6+ {[%clk
0:00:06.8]} 34... Rf6 {[%clk 0:00:09]} 35. Qe8+ {[%clk 0:00:06.9]} 35... Kg7
{[%clk 0:00:07]} 36. Re7+ {[%clk 0:00:05.2]} 36... Rf7 {[%clk 0:00:07.6]} 37.
Re2 {[%clk 0:00:03]} 37... Bc3 {[%clk 0:00:07.6]} 0-1

[Event "Early-Titled-Tuesday-Blitz-February-20-2024"]
[Site "Chess.com"]
[Date "2024.02.20"]
[Round "7"]
[White "Hudijegszid"]
[Black "ural58"]
[Result "1-0"]
[WhiteElo "2361"]
[BlackElo "2504"]
[TimeControl "180+1"]
[EndTime "9:19:59 PST"]
[Termination "Hudijegszid won by resignation"]

1. Nf3 {[%clk 0:03:00.9]} 1... Nc6 {[%clk 0:02:50.3]} 2. g3 {[%clk 0:03:01.8]}
2... d5 {[%clk 0:02:49.1]} 3. d4 {[%clk 0:03:00.9]} 3... Bf5 {[%clk 0:02:49]} 4.
Bg2 {[%clk 0:03:00.5]} 4... Nb4 {[%clk 0:02:49]} 5. Na3 {[%clk 0:03:00.3]} 5...
e6 {[%clk 0:02:49.5]} 6. O-O {[%clk 0:03:00.7]} 6... h6 {[%clk 0:02:49.3]} 7. c4
{[%clk 0:03:00.7]} 7... Nf6 {[%clk 0:02:48.2]} 8. Bf4 {[%clk 0:03:00.9]} 8... c6
{[%clk 0:02:38.5]} 9. Rc1 {[%clk 0:02:59.4]} 9... Be7 {[%clk 0:02:37.4]} 10. Ne5
{[%clk 0:02:39]} 10... Nxa2 {[%clk 0:02:33]} 11. Ra1 {[%clk 0:02:37.5]} 11...
Nb4 {[%clk 0:02:32.8]} 12. c5 {[%clk 0:02:17.9]} 12... O-O {[%clk 0:02:28.6]}
13. Qa4 {[%clk 0:02:17.8]} 13... a5 {[%clk 0:02:28.2]} 14. Bd2 {[%clk
0:02:17.5]} 14... Ne4 {[%clk 0:02:22.1]} 15. Bxb4 {[%clk 0:02:16]} 15... axb4
{[%clk 0:02:22.4]} 16. Qxb4 {[%clk 0:02:16.6]} 16... f6 {[%clk 0:02:20.2]} 17.
Nd3 {[%clk 0:02:16.6]} 17... b5 {[%clk 0:02:19.7]} 18. Nc2 {[%clk 0:02:13.3]}
18... Qc7 {[%clk 0:02:07.8]} 19. f3 {[%clk 0:01:19.5]} 19... Ng5 {[%clk
0:01:46.1]} 20. Rae1 {[%clk 0:01:18.9]} 20... Ra4 {[%clk 0:01:37]} 21. Qd2
{[%clk 0:01:18.4]} 21... Bxd3 {[%clk 0:01:10.1]} 22. Qxd3 {[%clk 0:01:18.2]}
22... e5 {[%clk 0:01:05.8]} 23. f4 {[%clk 0:01:10.3]} 23... e4 {[%clk
0:01:04.3]} 24. Qc3 {[%clk 0:01:02.9]} 24... Ne6 {[%clk 0:00:58.4]} 25. e3
{[%clk 0:01:02.7]} 25... Rfa8 {[%clk 0:00:57.4]} 26. Ra1 {[%clk 0:01:02]} 26...
f5 {[%clk 0:00:39.5]} 27. Bh3 {[%clk 0:01:01.5]} 27... g6 {[%clk 0:00:39.6]} 28.
g4 {[%clk 0:01:01.7]} 28... fxg4 {[%clk 0:00:37]} 29. Bxg4 {[%clk 0:01:01.7]}
29... Rxa1 {[%clk 0:00:35.9]} 30. Bxe6+ {[%clk 0:01:00.7]} 30... Kg7 {[%clk
0:00:36.1]} 31. Rxa1 {[%clk 0:01:01.1]} 31... Rxa1+ {[%clk 0:00:35.1]} 32. Nxa1
{[%clk 0:01:01.3]} 32... g5 {[%clk 0:00:34.6]} 33. f5 {[%clk 0:00:52.7]} 33...
Kf6 {[%clk 0:00:33.9]} 34. Nb3 {[%clk 0:00:51.6]} 34... Bd8 {[%clk 0:00:31.7]}
35. Qb4 {[%clk 0:00:46.8]} 35... h5 {[%clk 0:00:31.2]} 36. Qa3 {[%clk
0:00:46.3]} 36... g4 {[%clk 0:00:28.9]} 37. Qa8 {[%clk 0:00:38.3]} 37... g3
{[%clk 0:00:24.7]} 38. h3 {[%clk 0:00:27.8]} 38... h4 {[%clk 0:00:22.4]} 39. Qc8
{[%clk 0:00:27]} 39... Qxc8 {[%clk 0:00:19.7]} 40. Bxc8 {[%clk 0:00:26.5]} 40...
Bc7 {[%clk 0:00:14.4]} 41. Kg2 {[%clk 0:00:26]} 41... Ke7 {[%clk 0:00:13.6]} 42.
Bb7 {[%clk 0:00:24]} 42... Kd7 {[%clk 0:00:13.7]} 43. f6 {[%clk 0:00:24]} 43...
Bd8 {[%clk 0:00:13.9]} 44. f7 {[%clk 0:00:24.2]} 44... Ke7 {[%clk 0:00:11]} 45.
Bxc6 {[%clk 0:00:23.4]} 45... Kxf7 {[%clk 0:00:11.9]} 46. Bxd5+ {[%clk
0:00:23.6]} 46... Kg6 {[%clk 0:00:12]} 47. Bxe4+ {[%clk 0:00:24.1]} 47... Kh6
{[%clk 0:00:11.2]} 48. d5 {[%clk 0:00:24.1]} 48... Bg5 {[%clk 0:00:12.1]} 49. c6
{[%clk 0:00:22.3]} 1-0